[Event "Live Chess"]
[Site "Chess.com"]
[Date "2024.06.01"]
[Round "-"]
[White "Duke_of_Bebington"]
[Black "Ninifu"]
[Result "0-1"]
[WhiteElo "1597"]
[BlackElo "2069"]
[TimeControl "300"]
[EndTime "9:49:22 PDT"]
[Termination "Ninifu won by resignation"]

1. e4 {[%clk 0:04:57.5]} 1... d5 {[%clk 0:04:58.9]} 2. exd5 {[%clk 0:04:56.5]}
2... Nf6 {[%clk 0:04:58.3]} 3. Nf3 {[%clk 0:04:53.9]} 3... Bg4 {[%clk
0:04:54.5]} 4. Be2 {[%clk 0:04:52.4]} 4... Qxd5 {[%clk 0:04:52.8]} 5. O-O {[%clk
0:04:51.1]} 5... Nc6 {[%clk 0:04:51]} 6. c3 {[%clk 0:04:45.4]} 6... O-O-O {[%clk
0:04:49.5]} 7. d4 {[%clk 0:04:43.9]} 7... e6 {[%clk 0:04:44.8]} 8. Nbd2 {[%clk
0:04:37.6]} 8... Bd6 {[%clk 0:04:41.8]} 9. Qb3 {[%clk 0:04:36.4]} 9... Qh5
{[%clk 0:04:39.7]} 10. Re1 {[%clk 0:04:05.6]} 10... Bxh2+ {[%clk 0:04:28.1]} 11.
Nxh2 {[%clk 0:04:02.7]} 11... Bxe2 {[%clk 0:04:26.4]} 12. Nhf3 {[%clk
0:03:54.5]} 12... Bd3 {[%clk 0:04:09.7]} 13. Nf1 {[%clk 0:03:50.7]} 13... Bxf1
{[%clk 0:03:36.7]} 14. Rxf1 {[%clk 0:03:43.5]} 14... h6 {[%clk 0:03:24.3]} 15.
Bf4 {[%clk 0:03:41.8]} 15... g5 {[%clk 0:03:22.1]} 16. Bg3 {[%clk 0:03:40.3]}
16... Ne4 {[%clk 0:03:14.5]} 17. Rad1 {[%clk 0:03:28.3]} 17... Nxg3 {[%clk
0:03:02.5]} 18. fxg3 {[%clk 0:03:28.2]} 18... Qg4 {[%clk 0:02:58.3]} 19. Nh2
{[%clk 0:02:58]} 19... Qxg3 {[%clk 0:02:42.5]} 20. Rxf7 {[%clk 0:02:56.4]} 20...
Rhf8 {[%clk 0:02:31.3]} 21. Qxe6+ {[%clk 0:02:52.4]} 21... Kb8 {[%clk
0:02:30.6]} 22. Rdf1 {[%clk 0:02:38.5]} 22... Rxf7 {[%clk 0:02:27.3]} 23. Rxf7
{[%clk 0:02:31.9]} 23... h5 {[%clk 0:02:15.6]} 24. Rf3 {[%clk 0:02:11.8]} 24...
Qd6 {[%clk 0:02:08.2]} 25. Qxd6 {[%clk 0:02:09.3]} 25... Rxd6 {[%clk 0:02:05.2]}
26. Rf8+ {[%clk 0:02:07.6]} 26... Rd8 {[%clk 0:02:04.2]} 27. Rxd8+ {[%clk
0:02:05.4]} 27... Nxd8 {[%clk 0:02:03.4]} 28. Nf3 {[%clk 0:02:02.2]} 28... Nf7
{[%clk 0:02:01.9]} 29. Kf2 {[%clk 0:02:00.6]} 29... Kc8 {[%clk 0:02:01.1]} 30.
Kg3 {[%clk 0:01:58.9]} 30... Kd7 {[%clk 0:02:00.1]} 31. Nd2 {[%clk 0:01:54]}
31... Ke6 {[%clk 0:01:58.3]} 32. Kf3 {[%clk 0:01:52.7]} 32... Kf5 {[%clk
0:01:55.9]} 33. Ne4 {[%clk 0:01:48]} 33... g4+ {[%clk 0:01:39.3]} 34. Ke3 {[%clk
0:01:45.4]} 34... h4 {[%clk 0:01:37.5]} 35. Nc5 {[%clk 0:01:26.6]} 35... Nd6
{[%clk 0:01:33]} 36. Nd7 {[%clk 0:01:20.3]} 36... Ne4 {[%clk 0:01:24.6]} 37. Ne5
{[%clk 0:01:16.6]} 37... h3 {[%clk 0:01:19]} 38. Nxg4 {[%clk 0:00:55.3]} 38...
hxg2 {[%clk 0:01:17.7]} 0-1

[Event "Live Chess"]
[Site "Chess.com"]
[Date "2024.06.01"]
[Round "-"]
[White "Enhard"]
[Black "DoggyDalmatian"]
[Result "0-1"]
[WhiteElo "1446"]
[BlackElo "1568"]
[TimeControl "300"]
[EndTime "9:49:23 PDT"]
[Termination "DoggyDalmatian won by resignation"]

1. d4 {[%clk 0:04:58.1]} 1... d5 {[%clk 0:04:59.1]} 2. Bf4 {[%clk 0:04:57]} 2...
Bf5 {[%clk 0:04:57.8]} 3. e3 {[%clk 0:04:56.1]} 3... e6 {[%clk 0:04:56.9]} 4.
Nf3 {[%clk 0:04:51.9]} 4... c5 {[%clk 0:04:54.9]} 5. c3 {[%clk 0:04:50.8]} 5...
Nc6 {[%clk 0:04:54]} 6. h3 {[%clk 0:04:49.7]} 6... Bd6 {[%clk 0:04:53]} 7. Bxd6
{[%clk 0:04:48.3]} 7... Qxd6 {[%clk 0:04:52.9]} 8. Nbd2 {[%clk 0:04:47.6]} 8...
Nf6 {[%clk 0:04:51.6]} 9. Be2 {[%clk 0:04:43.8]} 9... O-O {[%clk 0:04:48.7]} 10.
O-O {[%clk 0:04:42.4]} 10... c4 {[%clk 0:04:45.7]} 11. a4 {[%clk 0:04:41]} 11...
Ne4 {[%clk 0:04:41.4]} 12. b3 {[%clk 0:04:36.5]} 12... Nxc3 {[%clk 0:04:39.6]}
13. Qe1 {[%clk 0:04:31.7]} 13... Nxe2+ {[%clk 0:04:34.8]} 14. Qxe2 {[%clk
0:04:30.2]} 14... Bd3 {[%clk 0:04:34]} 15. Qe1 {[%clk 0:04:27]} 15... Bxf1
{[%clk 0:04:33]} 16. Qxf1 {[%clk 0:04:25.6]} 16... cxb3 {[%clk 0:04:32.3]} 17.
Nxb3 {[%clk 0:04:23.9]} 17... b6 {[%clk 0:04:30.7]} 18. Qd1 {[%clk 0:04:18.7]}
18... Rfc8 {[%clk 0:04:27.6]} 19. Nbd2 {[%clk 0:04:00.8]} 19... h6 {[%clk
0:04:23.2]} 20. Nb1 {[%clk 0:03:51.8]} 20... Na5 {[%clk 0:04:22.2]} 21. Na3
{[%clk 0:03:48.6]} 21... Nc4 {[%clk 0:04:20.8]} 22. Nb5 {[%clk 0:03:47.6]} 22...
Qd7 {[%clk 0:04:18.7]} 23. Rb1 {[%clk 0:03:15.9]} 23... a6 {[%clk 0:04:13.9]}
24. Nc3 {[%clk 0:03:08.9]} 24... Rab8 {[%clk 0:04:09.2]} 25. Qb3 {[%clk
0:03:06.4]} 25... Na5 {[%clk 0:04:07.1]} 26. Qb4 {[%clk 0:03:00.7]} 26... Rc4
{[%clk 0:04:05.6]} 27. Qb2 {[%clk 0:02:50.3]} 27... Qc6 {[%clk 0:04:01.1]} 28.
Ne5 {[%clk 0:02:49.1]} 28... Qc7 {[%clk 0:03:52.5]} 29. Nxc4 {[%clk 0:02:47.2]}
29... Nxc4 {[%clk 0:03:52.4]} 30. Qb4 {[%clk 0:02:42.5]} 30... Qd6 {[%clk
0:03:44]} 31. Qxd6 {[%clk 0:02:31.8]} 31... Nxd6 {[%clk 0:03:43.9]} 32. Na2
{[%clk 0:02:21.6]} 32... b5 {[%clk 0:03:37.4]} 33. axb5 {[%clk 0:02:17.5]} 33...
Rxb5 {[%clk 0:03:35.1]} 34. Ra1 {[%clk 0:02:12.1]} 34... Ra5 {[%clk 0:03:32.7]}
0-1

[Event "Live Chess"]
[Site "Chess.com"]
[Date "2024.06.01"]
[Round "-"]
[White "booktrunk"]
[Black "DavrosLight"]
[Result "1-0"]
[WhiteElo "1387"]
[BlackElo "777"]
[TimeControl "300"]
[EndTime "9:49:43 PDT"]
[Termination "booktrunk won on time"]

1. d4 {[%clk 0:04:52.9]} 1... Nf6 {[%clk 0:04:54.5]} 2. Nc3 {[%clk 0:04:50]}
2... d5 {[%clk 0:04:52.5]} 3. Bf4 {[%clk 0:04:46]} 3... a6 {[%clk 0:04:44.5]} 4.
a3 {[%clk 0:04:40.7]} 4... g6 {[%clk 0:04:42.9]} 5. e3 {[%clk 0:04:39.7]} 5...
Bg7 {[%clk 0:04:41.7]} 6. Nf3 {[%clk 0:04:38.4]} 6... O-O {[%clk 0:04:39.8]} 7.
Bd3 {[%clk 0:04:33.9]} 7... Nc6 {[%clk 0:04:36.4]} 8. O-O {[%clk 0:04:30.9]}
8... b5 {[%clk 0:04:33.8]} 9. Re1 {[%clk 0:04:23.9]} 9... Bb7 {[%clk 0:04:25.5]}
10. Bg3 {[%clk 0:04:18.9]} 10... Re8 {[%clk 0:04:15.2]} 11. Ne5 {[%clk
0:04:13.1]} 11... Nxe5 {[%clk 0:04:08.6]} 12. Bxe5 {[%clk 0:04:11.4]} 12... Ne4
{[%clk 0:03:52.6]} 13. Bxg7 {[%clk 0:04:06.8]} 13... Kxg7 {[%clk 0:03:51.4]} 14.
Ne2 {[%clk 0:03:52.6]} 14... Ng5 {[%clk 0:03:35.4]} 15. Nf4 {[%clk 0:03:47.5]}
15... e5 {[%clk 0:03:29.6]} 16. dxe5 {[%clk 0:03:42.2]} 16... Rxe5 {[%clk
0:03:15.4]} 17. c3 {[%clk 0:03:38.8]} 17... Qd7 {[%clk 0:02:49.4]} 18. Be2
{[%clk 0:03:36.6]} 18... Ne4 {[%clk 0:02:29.8]} 19. Bg4 {[%clk 0:03:26]} 19...
f5 {[%clk 0:02:24.2]} 20. Bf3 {[%clk 0:03:19.2]} 20... Ng5 {[%clk 0:02:16.6]}
21. Be2 {[%clk 0:03:10.6]} 21... Ne4 {[%clk 0:02:11.5]} 22. Nd3 {[%clk
0:03:08.7]} 22... Qc6 {[%clk 0:01:58.3]} 23. Nxe5 {[%clk 0:03:07.1]} 23... Qd6
{[%clk 0:01:34.2]} 24. Nf3 {[%clk 0:02:57.9]} 24... f4 {[%clk 0:01:16.6]} 25.
exf4 {[%clk 0:02:49]} 25... Qxf4 {[%clk 0:01:15.1]} 26. Bd3 {[%clk 0:02:43.9]}
26... Nxf2 {[%clk 0:00:49.7]} 27. Kxf2 {[%clk 0:02:32.2]} 27... Rf8 {[%clk
0:00:41.2]} 28. Qc1 {[%clk 0:02:29.6]} 28... Qh4+ {[%clk 0:00:34.3]} 29. Kg1
{[%clk 0:02:18.5]} 29... Rxf3 {[%clk 0:00:17.9]} 30. gxf3 {[%clk 0:02:07.2]}
30... d4 {[%clk 0:00:13.8]} 31. Be4 {[%clk 0:01:53.1]} 31... Bxe4 {[%clk
0:00:04.9]} 32. Rxe4 {[%clk 0:01:48.8]} 1-0

[Event "Live Chess"]
[Site "Chess.com"]
[Date "2024.06.01"]
[Round "-"]
[White "StoreySniper"]
[Black "ProfPoisson"]
[Result "1-0"]
[WhiteElo "2547"]
[BlackElo "1233"]
[TimeControl "300"]
[EndTime "9:49:54 PDT"]
[Termination "StoreySniper won by resignation"]

1. c4 {[%clk 0:04:57.8]} 1... e6 {[%clk 0:04:58.1]} 2. g3 {[%clk 0:04:56.8]}
2... f5 {[%clk 0:04:55.1]} 3. Bg2 {[%clk 0:04:56.2]} 3... Nf6 {[%clk 0:04:50.9]}
4. Nc3 {[%clk 0:04:54.3]} 4... Be7 {[%clk 0:04:47.7]} 5. Nh3 {[%clk 0:04:49.5]}
5... O-O {[%clk 0:04:45.9]} 6. d4 {[%clk 0:04:47.7]} 6... d6 {[%clk 0:04:44.6]}
7. O-O {[%clk 0:04:45.2]} 7... a5 {[%clk 0:04:32.5]} 8. e4 {[%clk 0:04:41.9]}
8... fxe4 {[%clk 0:04:26.3]} 9. Nxe4 {[%clk 0:04:40.7]} 9... Nxe4 {[%clk
0:04:23.5]} 10. Bxe4 {[%clk 0:04:40.6]} 10... c6 {[%clk 0:04:19]} 11. Qh5 {[%clk
0:04:32.8]} 11... h6 {[%clk 0:04:04.1]} 12. Qg6 {[%clk 0:04:28.6]} 12... Rf5
{[%clk 0:03:56.4]} 13. Bxh6 {[%clk 0:04:21]} 13... Bf6 {[%clk 0:03:51.3]} 14.
Bxf5 {[%clk 0:04:15.8]} 14... exf5 {[%clk 0:03:49.5]} 15. Rfe1 {[%clk
0:04:12.3]} 15... Nd7 {[%clk 0:03:45.3]} 16. Re8+ {[%clk 0:04:08.6]} 1-0

[Event "Live Chess"]
[Site "Chess.com"]
[Date "2024.06.01"]
[Round "-"]
[White "jimwad"]
[Black "jumush"]
[Result "0-1"]
[WhiteElo "1216"]
[BlackElo "1741"]
[TimeControl "300"]
[EndTime "9:50:07 PDT"]
[Termination "jumush won by resignation"]

1. d4 {[%clk 0:04:58.5]} 1... d5 {[%clk 0:04:57.6]} 2. c4 {[%clk 0:04:57.3]}
2... e6 {[%clk 0:04:55.5]} 3. Nc3 {[%clk 0:04:56.1]} 3... c5 {[%clk 0:04:52.8]}
4. dxc5 {[%clk 0:04:54.6]} 4... d4 {[%clk 0:04:50.1]} 5. Ne4 {[%clk 0:04:52.6]}
5... Bxc5 {[%clk 0:04:47.6]} 6. Nxc5 {[%clk 0:04:50.1]} 6... Qa5+ {[%clk
0:04:45]} 7. Bd2 {[%clk 0:04:42.6]} 7... Qxc5 {[%clk 0:04:34.5]} 8. b3 {[%clk
0:04:41.8]} 8... Nc6 {[%clk 0:04:30.1]} 9. Nf3 {[%clk 0:04:40.5]} 9... Nf6
{[%clk 0:04:26.3]} 10. e3 {[%clk 0:04:39.4]} 10... dxe3 {[%clk 0:04:23.9]} 11.
Bxe3 {[%clk 0:04:38.3]} 11... Qb4+ {[%clk 0:04:21.6]} 12. Qd2 {[%clk 0:04:30.8]}
12... Qxd2+ {[%clk 0:04:19.2]} 13. Bxd2 {[%clk 0:04:28]} 13... O-O {[%clk
0:04:16.7]} 14. Bd3 {[%clk 0:04:25.1]} 14... b6 {[%clk 0:04:13.7]} 15. O-O
{[%clk 0:04:19.6]} 15... Bb7 {[%clk 0:04:11.7]} 16. Bc3 {[%clk 0:04:13.3]} 16...
Nd7 {[%clk 0:04:04.6]} 17. Be4 {[%clk 0:04:01.5]} 17... Nc5 {[%clk 0:04:00.6]}
18. Bxc6 {[%clk 0:03:54.2]} 18... Bxc6 {[%clk 0:03:57.5]} 19. Bb4 {[%clk
0:03:53]} 19... a5 {[%clk 0:03:54.8]} 20. Ba3 {[%clk 0:03:48.8]} 20... Rac8
{[%clk 0:03:51.6]} 21. Ne5 {[%clk 0:03:46.6]} 21... Bb7 {[%clk 0:03:45.6]} 22.
Rad1 {[%clk 0:03:37.7]} 22... Rfd8 {[%clk 0:03:43.2]} 23. Bb2 {[%clk 0:03:33.2]}
23... f6 {[%clk 0:03:24.8]} 24. Nf3 {[%clk 0:03:27.9]} 24... Bxf3 {[%clk
0:03:21.4]} 25. gxf3 {[%clk 0:03:26.7]} 25... e5 {[%clk 0:03:19.6]} 26. Kg2
{[%clk 0:03:24.9]} 26... Nd3 {[%clk 0:03:17.4]} 27. Bc3 {[%clk 0:03:17.4]} 27...
Nf4+ {[%clk 0:03:14.9]} 28. Kg3 {[%clk 0:03:15.1]} 28... h5 {[%clk 0:03:09.8]}
29. h4 {[%clk 0:03:12]} 29... Ne2+ {[%clk 0:03:04.4]} 0-1

[Event "Live Chess"]
[Site "Chess.com"]
[Date "2024.06.01"]
[Round "-"]
[White "ClassyChameleon"]
[Black "Grieve72"]
[Result "0-1"]
[WhiteElo "1521"]
[BlackElo "2637"]
[TimeControl "300"]
[EndTime "9:50:09 PDT"]
[Termination "Grieve72 won by resignation"]

1. e4 {[%clk 0:04:59.4]} 1... c5 {[%clk 0:04:59.3]} 2. Nf3 {[%clk 0:04:58.7]}
2... e6 {[%clk 0:04:58.7]} 3. d4 {[%clk 0:04:57.1]} 3... cxd4 {[%clk 0:04:58.6]}
4. Nxd4 {[%clk 0:04:56.4]} 4... Nc6 {[%clk 0:04:58.2]} 5. Nxc6 {[%clk
0:04:55.4]} 5... bxc6 {[%clk 0:04:57.5]} 6. Nc3 {[%clk 0:04:51.9]} 6... d5
{[%clk 0:04:57]} 7. e5 {[%clk 0:04:50.5]} 7... Ne7 {[%clk 0:04:51.1]} 8. Be2
{[%clk 0:04:46.9]} 8... Nf5 {[%clk 0:04:49.2]} 9. Bf4 {[%clk 0:04:36.3]} 9...
Bc5 {[%clk 0:04:46.4]} 10. O-O {[%clk 0:04:32.8]} 10... g5 {[%clk 0:04:45.2]}
11. Bg3 {[%clk 0:04:30.6]} 11... Nxg3 {[%clk 0:04:43.4]} 12. hxg3 {[%clk
0:04:29.6]} 12... Qc7 {[%clk 0:04:38.9]} 13. a3 {[%clk 0:04:03.8]} 13... Qxe5
{[%clk 0:04:37.4]} 14. Bg4 {[%clk 0:03:59.2]} 14... Qxg3 {[%clk 0:04:34.8]} 15.
Na4 {[%clk 0:03:52.9]} 15... h5 {[%clk 0:04:22.3]} 16. Bxe6 {[%clk 0:03:40.7]}
16... Bxf2+ {[%clk 0:04:14]} 17. Rxf2 {[%clk 0:03:36.9]} 17... Bxe6 {[%clk
0:04:13.9]} 18. Qd4 {[%clk 0:03:24.7]} 18... O-O {[%clk 0:04:10.1]} 19. Raf1
{[%clk 0:03:20.3]} 19... Rae8 {[%clk 0:04:02.9]} 20. Nc5 {[%clk 0:03:11.7]}
20... f5 {[%clk 0:03:47.7]} 21. Nxe6 {[%clk 0:02:59.5]} 21... Rxe6 {[%clk
0:03:47.6]} 22. Qxa7 {[%clk 0:02:44.4]} 22... f4 {[%clk 0:03:43.2]} 23. Qd7
{[%clk 0:02:36.3]} 23... Rfe8 {[%clk 0:03:39]} 24. a4 {[%clk 0:02:14.4]} 24...
h4 {[%clk 0:03:38]} 25. Kh1 {[%clk 0:02:10.3]} 25... h3 {[%clk 0:03:33.9]} 26.
a5 {[%clk 0:01:42.4]} 26... Re1 {[%clk 0:03:29]} 27. gxh3 {[%clk 0:01:08.3]}
27... Rxf1+ {[%clk 0:02:54]} 28. Rxf1 {[%clk 0:01:06.8]} 28... Re2 {[%clk
0:02:53.5]} 29. Qd8+ {[%clk 0:01:02.9]} 29... Kg7 {[%clk 0:02:52.9]} 30. Qc7+
{[%clk 0:00:39.6]} 30... Kg6 {[%clk 0:02:52.4]} 31. Qxc6+ {[%clk 0:00:38.9]}
31... Kh5 {[%clk 0:02:51.7]} 0-1

[Event "Live Chess"]
[Site "Chess.com"]
[Date "2024.06.01"]
[Round "-"]
[White "edward33_24h"]
[Black "gmnorfolk"]
[Result "0-1"]
[WhiteElo "624"]
[BlackElo "2106"]
[TimeControl "300"]
[EndTime "9:50:12 PDT"]
[Termination "gmnorfolk won by resignation"]

1. e4 {[%clk 0:04:53.1]} 1... c5 {[%clk 0:04:54.5]} 2. Nf3 {[%clk 0:04:47.8]}
2... d6 {[%clk 0:04:53.5]} 3. Nc3 {[%clk 0:04:40.1]} 3... Nf6 {[%clk 0:04:52]}
4. Bb5+ {[%clk 0:04:32.9]} 4... Bd7 {[%clk 0:04:49.9]} 5. Bxd7+ {[%clk
0:04:26.8]} 5... Nbxd7 {[%clk 0:04:47.5]} 6. d3 {[%clk 0:04:22.9]} 6... g6
{[%clk 0:04:46.2]} 7. O-O {[%clk 0:04:20.3]} 7... Bg7 {[%clk 0:04:46.1]} 8. e5
{[%clk 0:04:12.6]} 8... O-O {[%clk 0:04:46]} 9. exf6 {[%clk 0:03:50.8]} 9...
Bxf6 {[%clk 0:04:42]} 10. Bg5 {[%clk 0:03:41.4]} 10... Bg7 {[%clk 0:04:39.8]}
11. Qd2 {[%clk 0:03:30.7]} 11... Re8 {[%clk 0:04:37]} 12. Bh6 {[%clk 0:03:22.4]}
12... Bh8 {[%clk 0:04:35.1]} 13. Rfe1 {[%clk 0:03:10.4]} 13... Rb8 {[%clk
0:04:23.2]} 14. Rab1 {[%clk 0:03:03.8]} 14... b5 {[%clk 0:04:20.5]} 15. Ne4
{[%clk 0:02:56.7]} 15... f6 {[%clk 0:04:16.1]} 16. Ng3 {[%clk 0:02:46]} 16... d5
{[%clk 0:04:11.3]} 17. Nh4 {[%clk 0:02:34.7]} 17... e5 {[%clk 0:04:08]} 18. Nxg6
{[%clk 0:02:29]} 18... hxg6 {[%clk 0:04:05]} 19. Nf5 {[%clk 0:02:15.3]} 19...
gxf5 {[%clk 0:03:39.8]} 20. Re3 {[%clk 0:02:03.4]} 20... Kf7 {[%clk 0:03:37.2]}
21. Rg3 {[%clk 0:01:55.5]} 21... Rg8 {[%clk 0:03:34.2]} 22. Rxg8 {[%clk
0:01:41.8]} 22... Qxg8 {[%clk 0:03:31.5]} 23. Be3 {[%clk 0:01:22.6]} 23... f4
{[%clk 0:03:28.1]} 24. Bxf4 {[%clk 0:01:08.7]} 24... exf4 {[%clk 0:03:23.6]} 25.
Qxf4 {[%clk 0:01:06.5]} 25... Re8 {[%clk 0:03:13.6]} 26. d4 {[%clk 0:00:39.9]}
26... cxd4 {[%clk 0:02:53.9]} 27. Qxd4 {[%clk 0:00:34]} 27... Kf8 {[%clk
0:02:52.8]} 28. Qc5+ {[%clk 0:00:29.2]} 28... Nxc5 {[%clk 0:02:50.8]} 0-1

[Event "Live Chess"]
[Site "Chess.com"]
[Date "2024.06.01"]
[Round "-"]
[White "Grace6363"]
[Black "Bob2pen"]
[Result "0-1"]
[WhiteElo "1147"]
[BlackElo "1801"]
[TimeControl "300"]
[EndTime "9:50:13 PDT"]
[Termination "Bob2pen won by resignation"]

1. d4 {[%clk 0:04:57.2]} 1... Nf6 {[%clk 0:04:58.5]} 2. c4 {[%clk 0:04:55.9]}
2... c5 {[%clk 0:04:55.9]} 3. d5 {[%clk 0:04:49.6]} 3... e6 {[%clk 0:04:54.3]}
4. Nc3 {[%clk 0:04:46.3]} 4... exd5 {[%clk 0:04:51.8]} 5. Nxd5 {[%clk
0:04:44.7]} 5... Nxd5 {[%clk 0:04:49.3]} 6. cxd5 {[%clk 0:04:43.6]} 6... d6
{[%clk 0:04:47.9]} 7. Bf4 {[%clk 0:04:39.5]} 7... g6 {[%clk 0:04:46.3]} 8. e3
{[%clk 0:04:33.4]} 8... Bg7 {[%clk 0:04:44.8]} 9. Qa4+ {[%clk 0:04:23.1]} 9...
Bd7 {[%clk 0:04:42.6]} 10. Qe4+ {[%clk 0:04:21.9]} 10... Qe7 {[%clk 0:04:35.2]}
11. Qxe7+ {[%clk 0:04:11.1]} 11... Kxe7 {[%clk 0:04:33.8]} 12. Rb1 {[%clk
0:04:00.6]} 12... b5 {[%clk 0:04:31.3]} 13. Nf3 {[%clk 0:03:46.3]} 13... c4
{[%clk 0:04:27.9]} 14. Be2 {[%clk 0:03:35.3]} 14... Bf5 {[%clk 0:04:25]} 15. Rc1
{[%clk 0:03:22.7]} 15... Bxb2 {[%clk 0:04:21.5]} 16. Rd1 {[%clk 0:03:09.6]}
16... Nd7 {[%clk 0:04:17.1]} 17. O-O {[%clk 0:03:07.2]} 17... Rhc8 {[%clk
0:04:11.9]} 18. Nh4 {[%clk 0:03:04.4]} 18... Nc5 {[%clk 0:03:58.7]} 19. Nxf5+
{[%clk 0:03:03]} 19... gxf5 {[%clk 0:03:56.8]} 20. g4 {[%clk 0:02:54.3]} 20...
Rab8 {[%clk 0:03:47.4]} 21. gxf5 {[%clk 0:02:52.4]} 21... Ne4 {[%clk 0:03:42.1]}
22. Rb1 {[%clk 0:02:27.9]} 22... Bf6 {[%clk 0:03:35]} 23. Rfd1 {[%clk 0:02:01]}
23... Nc3 {[%clk 0:03:32]} 24. Rdc1 {[%clk 0:01:59.6]} 24... Nxe2+ {[%clk
0:03:28.8]} 25. Kg2 {[%clk 0:01:57.4]} 25... Nxc1 {[%clk 0:03:27.6]} 26. Rxc1
{[%clk 0:01:56.2]} 26... b4 {[%clk 0:03:26.3]} 27. e4 {[%clk 0:01:51.3]} 27...
Be5 {[%clk 0:03:24.1]} 28. Be3 {[%clk 0:01:40.4]} 28... b3 {[%clk 0:03:21]} 29.
axb3 {[%clk 0:01:35.5]} 29... cxb3 {[%clk 0:03:19.3]} 0-1

[Event "Live Chess"]
[Site "Chess.com"]
[Date "2024.06.01"]
[Round "-"]
[White "Mangoalo"]
[Black "dl_chess"]
[Result "0-1"]
[WhiteElo "991"]
[BlackElo "1165"]
[TimeControl "300"]
[EndTime "9:50:14 PDT"]
[Termination "dl_chess won by resignation"]

1. e4 {[%clk 0:04:59.2]} 1... e6 {[%clk 0:04:56.3]} 2. Bc4 {[%clk 0:04:57.9]}
2... d5 {[%clk 0:04:54.5]} 3. exd5 {[%clk 0:04:57.8]} 3... exd5 {[%clk
0:04:52.9]} 4. Bb3 {[%clk 0:04:57.4]} 4... Nf6 {[%clk 0:04:51.2]} 5. d4 {[%clk
0:04:56.9]} 5... Bd6 {[%clk 0:04:49.5]} 6. Nc3 {[%clk 0:04:56.5]} 6... c6 {[%clk
0:04:46.5]} 7. Bg5 {[%clk 0:04:56]} 7... O-O {[%clk 0:04:43.1]} 8. Nge2 {[%clk
0:04:53.3]} 8... h6 {[%clk 0:04:42.2]} 9. Bxf6 {[%clk 0:04:51.4]} 9... Qxf6
{[%clk 0:04:41.1]} 10. O-O {[%clk 0:04:51.3]} 10... Qh4 {[%clk 0:04:36.5]} 11.
g3 {[%clk 0:04:49.1]} 11... Qh3 {[%clk 0:04:28.7]} 12. Nf4 {[%clk 0:04:47.9]}
12... Bxf4 {[%clk 0:04:24.3]} 13. gxf4 {[%clk 0:04:47.1]} 13... Bg4 {[%clk
0:04:22.1]} 14. Ne2 {[%clk 0:04:42.3]} 14... Bf3 {[%clk 0:04:20]} 0-1

[Event "Live Chess"]
[Site "Chess.com"]
[Date "2024.06.01"]
[Round "-"]
[White "13Alexey"]
[Black "elephantgerrald"]
[Result "0-1"]
[WhiteElo "740"]
[BlackElo "736"]
[TimeControl "300"]
[EndTime "9:50:20 PDT"]
[Termination "elephantgerrald won by checkmate"]

1. d4 {[%clk 0:04:59]} 1... d5 {[%clk 0:04:57.2]} 2. Bf4 {[%clk 0:04:57.6]} 2...
Nc6 {[%clk 0:04:56.2]} 3. Nf3 {[%clk 0:04:55.9]} 3... Bg4 {[%clk 0:04:54.5]} 4.
e3 {[%clk 0:04:53.7]} 4... Bxf3 {[%clk 0:04:50.4]} 5. Qxf3 {[%clk 0:04:52]} 5...
Nf6 {[%clk 0:04:50.3]} 6. Bd3 {[%clk 0:04:50.1]} 6... e6 {[%clk 0:04:50.2]} 7.
c3 {[%clk 0:04:46.9]} 7... Bd6 {[%clk 0:04:49.2]} 8. Bg3 {[%clk 0:04:43.4]} 8...
Bxg3 {[%clk 0:04:47.1]} 9. hxg3 {[%clk 0:04:42.3]} 9... O-O {[%clk 0:04:46]} 10.
Bxh7+ {[%clk 0:04:32.1]} 10... Nxh7 {[%clk 0:04:44]} 11. Qh5 {[%clk 0:04:30.8]}
11... Re8 {[%clk 0:04:28.8]} 12. Qxh7+ {[%clk 0:04:29.2]} 12... Kf8 {[%clk
0:04:27.8]} 13. Qh8+ {[%clk 0:04:25.1]} 13... Ke7 {[%clk 0:04:25.5]} 14. Qxg7
{[%clk 0:04:22.3]} 14... Rg8 {[%clk 0:04:24.1]} 15. Qh6 {[%clk 0:03:56.9]} 15...
e5 {[%clk 0:04:11]} 16. dxe5 {[%clk 0:03:46]} 16... Nxe5 {[%clk 0:04:05.4]} 17.
Nd2 {[%clk 0:03:41.1]} 17... Nd3+ {[%clk 0:03:59.6]} 18. Ke2 {[%clk 0:03:38.4]}
18... Nxb2 {[%clk 0:03:54.5]} 19. Rab1 {[%clk 0:03:36.9]} 19... Na4 {[%clk
0:03:52.2]} 20. Rxb7 {[%clk 0:03:35.5]} 20... Nxc3+ {[%clk 0:03:50.9]} 21. Kf1
{[%clk 0:03:32.2]} 21... Qc8 {[%clk 0:03:48]} 22. Qh4+ {[%clk 0:03:27.3]} 22...
f6 {[%clk 0:03:45.5]} 23. Qh7+ {[%clk 0:03:25.3]} 23... Kd6 {[%clk 0:03:43.9]}
24. Rb3 {[%clk 0:03:12.3]} 24... Qa6+ {[%clk 0:03:33]} 25. Ke1 {[%clk
0:03:01.5]} 25... Qe2# {[%clk 0:03:02]} 0-1

[Event "Live Chess"]
[Site "Chess.com"]
[Date "2024.06.01"]
[Round "-"]
[White "RuslanChessN"]
[Black "SvitlanaJ"]
[Result "1-0"]
[WhiteElo "1980"]
[BlackElo "386"]
[TimeControl "300"]
[EndTime "9:50:23 PDT"]
[Termination "RuslanChessN won by resignation"]

1. d4 {[%clk 0:04:55.1]} 1... d5 {[%clk 0:04:57.4]} 2. c4 {[%clk 0:04:53.9]}
2... c6 {[%clk 0:04:53.1]} 3. Nc3 {[%clk 0:04:52.8]} 3... Nf6 {[%clk 0:04:49.8]}
4. Nf3 {[%clk 0:04:51.6]} 4... e6 {[%clk 0:04:45.9]} 5. Bg5 {[%clk 0:04:49.6]}
5... Bb4 {[%clk 0:04:44.1]} 6. Qb3 {[%clk 0:04:45.7]} 6... Na6 {[%clk
0:04:40.2]} 7. e3 {[%clk 0:04:39.9]} 7... O-O {[%clk 0:04:37.2]} 8. cxd5 {[%clk
0:04:36.1]} 8... cxd5 {[%clk 0:04:30.6]} 9. Bxa6 {[%clk 0:04:33.9]} 9... Bxc3+
{[%clk 0:04:14.9]} 10. bxc3 {[%clk 0:04:33.8]} 10... bxa6 {[%clk 0:04:12.5]} 11.
O-O {[%clk 0:04:31.8]} 11... Qd6 {[%clk 0:04:01.5]} 12. Bxf6 {[%clk 0:04:28.9]}
12... gxf6 {[%clk 0:03:58.1]} 13. c4 {[%clk 0:04:27]} 13... Bb7 {[%clk
0:03:47.2]} 14. c5 {[%clk 0:04:25.1]} 14... Qc6 {[%clk 0:03:37.7]} 15. Rab1
{[%clk 0:04:21.4]} 15... Rab8 {[%clk 0:03:35.4]} 16. Rfc1 {[%clk 0:04:16.4]}
16... Kh8 {[%clk 0:03:23.1]} 17. Nd2 {[%clk 0:04:02.9]} 17... e5 {[%clk
0:03:06]} 18. Rc2 {[%clk 0:03:41.1]} 18... e4 {[%clk 0:02:51.1]} 19. Rcb2 {[%clk
0:03:38.6]} 19... Kg7 {[%clk 0:02:27]} 20. Qd1 {[%clk 0:03:28]} 20... Kh8 {[%clk
0:02:04]} 21. Rb4 {[%clk 0:03:19.4]} 21... Rg8 {[%clk 0:01:55]} 22. Qb3 {[%clk
0:03:16]} 22... a5 {[%clk 0:01:34.2]} 23. Rxb7 {[%clk 0:03:13.7]} 23... Rxb7
{[%clk 0:01:24.8]} 24. Qxb7 {[%clk 0:03:12.2]} 24... Qxb7 {[%clk 0:01:18.7]} 25.
Rxb7 {[%clk 0:03:10.2]} 25... Rc8 {[%clk 0:01:12.9]} 26. Nb3 {[%clk 0:03:08.7]}
26... a4 {[%clk 0:01:03.6]} 27. Na5 {[%clk 0:03:05.9]} 27... f5 {[%clk
0:00:53.4]} 28. c6 {[%clk 0:03:02.3]} 1-0